fUSD/lending_fUSD_20240412
["ID","MTS","AMOUNT","RATE_DAILY","PERIOD"]
[322274661,1712926256237,-500.0,0.00046575,31]
[322274662,1712926256246,-500.0,0.00046575,31]
[322274663,1712926256256,-500.0,0.00046575,31]
[322274664,1712926256266,-500.0,0.00046575,31]
[322274665,1712926256276,-500.0,0.00046575,31]
[322274666,1712926256287,-500.0,0.00046575,31]
[322274667,1712926256296,-505.92816739,0.00046575,31]
[322274668,1712926256306,-500.0,0.00046575,31]
[322274669,1712926256317,-1391.19,0.00046575,31]
[322274670,1712926256326,-500.0,0.00046575,31]
[322274671,1712926256336,-501.66064014,0.00046575,31]
[322274672,1712926256346,-500.0,0.00046575,31]
[322274673,1712926256355,-544.32,0.00046575,31]
[322274674,1712926256366,-500.0,0.00046575,31]
[322274675,1712926256376,-500.0,0.00046575,31]
[322274676,1712926256386,-500.0,0.00046575,31]
[322274677,1712926256399,-500.0,0.00046575,31]
[322274678,1712926256408,-506.32905678,0.00046575,31]
[322274679,1712926256418,-724.59,0.00046575,31]
[322274680,1712926256430,-505.15046055,0.00046575,31]
[322274681,1712926256439,-500.0,0.00046575,31]
[322274682,1712926256449,-500.0,0.00046575,31]
[322274683,1712926256458,-500.0,0.00046575,31]
[322274684,1712926256467,-500.0,0.00046575,31]
[322274685,1712926256477,-501.33294722,0.00046575,31]
[322274686,1712926256487,-500.0,0.00046575,31]
[322274687,1712926256498,-500.0,0.00046575,31]
[322274688,1712926256507,-500.0,0.00046575,31]
[322274689,1712926256518,-546.46294929,0.00046575,31]
[322274690,1712926256527,-500.0,0.00046575,31]
[322274691,1712926256538,-500.0,0.00046575,31]
[322274692,1712926256549,-500.0,0.00046575,31]
[322274693,1712926256559,-500.0,0.00046575,2]
[322274694,1712926256568,-507.89926353,0.00046575,31]
[322274695,1712926256578,-500.0,0.00046575,31]
[322274696,1712926256589,-500.0,0.00046575,31]
[322274697,1712926256599,-500.0,0.00046575,31]
[322274698,1712926256609,-500.0,0.00046575,31]
[322274699,1712926256620,-500.0,0.00046575,31]
[322274700,1712926256631,-500.0,0.00046575,31]
[322274701,1712926256640,-500.0,0.00046575,31]
[322274702,1712926256650,-500.0,0.00046575,31]
[322274703,1712926256660,-1000.0,0.00046575,120]
[322274704,1712926256670,-500.0,0.00046575,31]
[322274705,1712926256682,-500.0,0.00046575,31]
[322274706,1712926256692,-500.0,0.00046575,31]
[322274707,1712926256703,-500.0,0.00046575,31]
[322274708,1712926256712,-500.0,0.00046575,31]
[322274709,1712926256722,-500.0,0.00046575,31]
[322274710,1712926256732,-500.0,0.00046575,31]
[322274711,1712926256742,-710.88,0.00046575,31]
[322274712,1712926256751,-152.80830788,0.00046575,31]
[322274713,1712926256761,-500.0,0.00046575,31]
[322274714,1712926256771,-500.0,0.00046575,31]
[322274715,1712926256781,-500.0,0.00046575,31]
[322274716,1712926256791,-500.0,0.00046575,31]
[322274717,1712926256802,-500.0,0.00046575,31]
[322274718,1712926256812,-577.83,0.00046575,31]
[322274719,1712926256821,-269.02542023,0.00046575,31]
[322274720,1712926256831,-500.0,0.00046575,21]
[322274721,1712926256842,-1077.64,0.00046575,31]
[322274722,1712926256852,-2967.81,0.00046575,31]
[322274723,1712926256862,-500.0,0.00046575,31]
[322274724,1712926256871,-500.0,0.00046575,31]
[322274725,1712926256881,-500.0,0.00046575,31]
[322274726,1712926256892,-500.0,0.00046575,31]
[322274727,1712926256901,-500.0,0.00046575,31]
[322274728,1712926256911,-500.0,0.00046575,31]
[322274729,1712926256920,-500.0,0.00046575,31]
[322274730,1712926256931,-500.0,0.00046575,31]
[322274731,1712926256940,-1068.06,0.00046575,31]
[322274732,1712926256950,-500.0,0.00046575,31]
[322274733,1712926256959,-500.0,0.00046575,31]
[322274734,1712926256968,-500.0,0.00046575,31]
[322274735,1712926256978,-500.0,0.00046575,31]
[322274736,1712926256987,-544.29930275,0.00046575,31]
[322274737,1712926256996,-672.89,0.00046575,31]
[322274738,1712926257006,-500.0,0.00046575,31]
[322274739,1712926257015,-500.0,0.00046575,31]
[322274740,1712926257025,-503.9490068,0.00046575,31]
[322274741,1712926257035,-500.0,0.00046575,31]
[322274742,1712926257045,-500.0,0.00046575,31]
[322274743,1712926257054,-708.33,0.00046575,2]
[322274744,1712926257063,-500.0,0.00046575,31]
[322274745,1712926257073,-500.0,0.00046575,31]
[322274746,1712926257083,-500.0,0.00046575,31]
[322274747,1712926257093,-500.0,0.00046575,31]
[322274748,1712926257102,-500.0,0.00046575,31]
[322274749,1712926257112,-500.0,0.00046575,31]
[322274750,1712926257121,-500.0,0.00046575,31]
[322274751,1712926257131,-638.14,0.00046575,31]
[322274752,1712926257141,-6806.73,0.00046575,31]
[322274753,1712926257150,-1520.01,0.00046575,31]
[322274754,1712926257159,-500.0,0.00046575,31]
[322274755,1712926257168,-500.0,0.00046575,31]
[322274756,1712926257179,-500.0,0.00046575,31]
[322274757,1712926257188,-505.95941876,0.00046575,31]
[322274758,1712926257198,-500.0,0.00046575,31]
[322274759,1712926257207,-1871.64,0.00046575,31]
[322274760,1712926257217,-500.0,0.00046575,31]
[322274761,1712926257226,-500.0,0.00046575,31]
[322274762,1712926257235,-500.0,0.00046575,31]
[322274763,1712926257434,-500.0,0.00046575,31]
[322274764,1712926257444,-500.0,0.00046575,31]
[322274765,1712926257454,-500.0,0.00046575,31]
[322274766,1712926257463,-500.0,0.00046575,31]
[322274767,1712926257473,-500.0,0.00046575,31]
[322274768,1712926257482,-500.0,0.00046575,31]
[322274769,1712926257490,-500.0,0.00046575,31]
[322274770,1712926257500,-500.0,0.00046575,31]
[322274771,1712926257509,-500.0,0.00046575,31]
[322274772,1712926257518,-500.0,0.00046575,31]
[322274773,1712926257527,-500.0,0.00046575,31]
[322274774,1712926257536,-500.0,0.00046575,31]
[322274775,1712926257545,-500.0,0.00046575,31]
[322274776,1712926257554,-500.0,0.00046575,31]
[322274777,1712926257563,-500.0,0.00046575,31]
[322274778,1712926257572,-220.86884348,0.00046575,31]
[322274779,1712926257582,-500.0,0.00046575,31]
[322274780,1712926257592,-500.0,0.00046575,31]
[322274781,1712926257601,-500.0,0.00046575,31]
[322274782,1712926257611,-500.0,0.00046575,31]
[322274783,1712926257620,-500.0,0.00046575,31]
[322274784,1712926257632,-500.0,0.00046575,31]
[322274785,1712926257642,-500.0,0.00046575,31]
[322274786,1712926257652,-500.0,0.00046575,31]
[322274787,1712926257662,-500.0,0.00046575,31]
[322274788,1712926257672,-500.0,0.00046575,31]
[322274789,1712926257682,-500.0,0.00046575,31]
[322274790,1712926257692,-500.0,0.00046575,31]
[322274791,1712926257701,-500.0,0.00046575,31]
[322274792,1712926257711,-500.0,0.00046575,31]
[322274793,1712926257721,-500.0,0.00046575,31]
[322274794,1712926257731,-500.0,0.00046575,31]
[322274795,1712926257740,-500.0,0.00046575,31]
[322274796,1712926257749,-500.0,0.00046575,31]
[322274797,1712926257758,-500.0,0.00046575,31]
[322274798,1712926257768,-500.0,0.00046575,31]
[322274799,1712926257778,-500.0,0.00046575,31]
[322274800,1712926257787,-500.0,0.00046575,31]
[322274801,1712926257796,-500.0,0.00046575,31]
[322274802,1712926257806,-500.0,0.00046575,31]
[322274803,1712926257815,-500.0,0.00046575,31]
[322274804,1712926257825,-500.0,0.00046575,31]
[322274805,1712926257834,-500.0,0.00046575,31]
[322274806,1712926257843,-1035.94,0.00046575,31]
[322274807,1712926257853,-500.0,0.00046575,31]
[322274808,1712926257862,-500.0,0.00046575,31]
[322274809,1712926257871,-500.0,0.00046575,31]
[322274810,1712926257881,-500.0,0.00046575,31]
[322274811,1712926257890,-500.0,0.00046575,31]
[322274812,1712926257900,-500.0,0.00046575,31]
[322274813,1712926257909,-500.0,0.00046575,31]
[322274814,1712926257919,-500.0,0.00046575,31]
[322274815,1712926257928,-500.0,0.00046575,31]
[322274816,1712926257937,-630.44805994,0.00046575,31]
[322274817,1712926257946,-500.0,0.00046575,31]
[322274818,1712926257956,-1340.25,0.00046575,31]
[322274819,1712926257965,-500.0,0.00046575,31]
[322274820,1712926257975,-500.0,0.00046575,31]
[322274821,1712926257984,-500.0,0.00046575,30]
[322274822,1712926257994,-500.0,0.00046575,31]
[322274823,1712926258003,-1000.0,0.00046575,30]
[322274824,1712926258012,-500.0,0.00046575,31]
[322274825,1712926258021,-1717.34,0.00046575,31]
[322274826,1712926258030,-500.0,0.00046575,31]
[322274827,1712926258040,-500.0,0.00046575,31]
[322274828,1712926258049,-500.0,0.00046575,31]
[322274829,1712926258058,-500.0,0.00046575,31]
[322274830,1712926258067,-500.0,0.00046575,31]
[322274831,1712926258077,-500.0,0.00046575,31]
[322274832,1712926258086,-500.0,0.00046575,31]
[322274833,1712926258095,-500.0,0.00046575,31]
[322274834,1712926258104,-500.0,0.00046575,31]
[322274835,1712926258113,-821.08,0.00046575,31]
[322274836,1712926258122,-529.69304351,0.00046575,31]
[322274837,1712926258131,-500.0,0.00046575,31]
[322274838,1712926258141,-505.95496149,0.00046575,31]
[322274839,1712926258150,-597.04,0.00046575,31]
[322274840,1712926258159,-538.3545986,0.00046575,31]
[322274841,1712926258169,-500.0,0.00046575,31]
[322274842,1712926258178,-1124.32,0.00046575,31]
[322274843,1712926258188,-494.5,0.00046575,31]
[322274844,1712926258197,-500.0,0.00046575,31]
[322274845,1712926258206,-604.09,0.00046575,31]
[322274846,1712926258215,-626.88,0.00046575,31]
[322274847,1712926258225,-500.0,0.00046575,31]
[322274848,1712926258235,-500.0,0.00046575,31]
[322274849,1712926258244,-500.0,0.00046575,31]
[322274850,1712926258253,-500.0,0.00046575,31]
[322274851,1712926258263,-500.0,0.00046575,31]
[322274852,1712926258272,-1904.72,0.00046575,31]
[322274853,1712926258281,-500.0,0.00046575,31]
[322274854,1712926258291,-500.0,0.00046575,31]
[322274855,1712926258300,-542.40416691,0.00046575,31]
[322274856,1712926258310,-528.43569353,0.00046575,31]
[322274857,1712926258319,-1070.46,0.00046575,31]
[322274858,1712926258328,-500.0,0.00046575,31]
[322274859,1712926258337,-500.0,0.00046575,31]
[322274860,1712926258346,-500.0,0.00046575,31]
[322274861,1712926258356,-500.0,0.00046575,31]
[322274862,1712926258365,-500.0,0.00046575,31]
[322274863,1712926258374,-500.0,0.00046575,31]
[322274864,1712926258384,-575.2,0.00046575,31]
[322274865,1712926258393,-505.18206641,0.00046575,31]
[322274866,1712926258403,-500.0,0.00046575,31]
[322274867,1712926258412,-500.0,0.00046575,31]
[322274868,1712926258421,-473.53000131,0.00046575,31]
[322274869,1712926258431,-500.0,0.00046575,31]
[322274870,1712926258442,-500.0,0.00046575,31]
[322274871,1712926258451,-2023.37,0.00046575,31]
[322274872,1712926258460,-11099.72,0.00046575,31]
[322274873,1712926258469,-500.0,0.00046575,31]
[322274874,1712926258478,-930.87,0.00046575,31]
[322274875,1712926258487,-500.0,0.00046575,31]
[322274876,1712926258497,-165.89128257,0.00046575,31]
[322274877,1712926258506,-500.0,0.00046575,31]
[322274878,1712926258515,-500.0,0.00046575,31]
[322274879,1712926258525,-631.2704727,0.00046575,31]
[322274880,1712926258535,-500.0,0.00046575,31]
[322274881,1712926258544,-515.36761949,0.00046575,31]
[322274882,1712926258554,-500.0,0.00046575,31]
[322274883,1712926258564,-844.56,0.00046575,31]
[322274884,1712926258573,-500.0,0.00046575,31]
[322274885,1712926258582,-1975.68,0.00046575,31]
[322274886,1712926258594,-500.0,0.00046575,31]
[322274887,1712926258605,-500.0,0.00046575,31]
[322274888,1712926258614,-500.0,0.00046575,31]
[322274889,1712926258624,-1062.21,0.00046575,31]
[322274890,1712926258635,-500.0,0.00046575,31]
[322274891,1712926258644,-370.84745063,0.00046575,31]
[322274892,1712926258654,-500.0,0.00046575,31]
[322274893,1712926258664,-500.0,0.00046575,31]
[322274894,1712926258673,-500.0,0.00046575,31]
[322274895,1712926258685,-500.0,0.00046575,31]
[322274896,1712926258694,-500.0,0.00046575,31]
[322274897,1712926258705,-500.0,0.00046575,31]
[322274898,1712926258715,-500.0,0.00046575,31]
[322274899,1712926258725,-500.0,0.00046575,31]
[322274900,1712926258735,-1905.49,0.00046575,31]
[322274901,1712926258745,-781.0,0.00046575,30]
[322274902,1712926258754,-800.47,0.00046575,31]
[322274903,1712926258764,-500.0,0.00046575,31]
[322274904,1712926258773,-556.59,0.00046575,31]
[322274905,1712926258783,-500.0,0.00046575,31]
[322274906,1712926258793,-500.0,0.00046575,31]
[322274907,1712926258802,-500.0,0.00046575,31]
[322274908,1712926258812,-888.39,0.00046575,31]
[322274909,1712926258821,-658.33,0.00046575,31]
[322274910,1712926258831,-500.0,0.00046575,31]
[322274911,1712926258840,-510.32,0.00046575,31]
[322274912,1712926258850,-500.0,0.00046575,31]
[322274913,1712926258859,-684.38,0.00046575,31]
[322274914,1712926258868,-688.0,0.00046575,31]
[322274915,1712926258878,-520.03,0.00046575,31]
[322274916,1712926258887,-500.0,0.00046575,31]
[322274917,1712926258897,-500.0,0.00046575,31]
[322274918,1712926258906,-512.93,0.00046575,31]
[322274919,1712926258916,-500.1716418,0.00046575,31]
[322274920,1712926258925,-1304.17,0.00046575,31]
[322274921,1712926258936,-500.0,0.00046575,31]
[322274922,1712926258946,-500.0,0.00046575,31]
[322274923,1712926258956,-647.47,0.00046575,31]
[322274924,1712926258965,-500.0,0.00046575,31]
[322274925,1712926258974,-152.10638196,0.00046575,31]
[322274926,1712926258983,-500.0,0.00046575,2]
[322274927,1712926258993,-500.0,0.00046575,31]
[322274928,1712926259003,-763.34,0.00046575,31]
[322274929,1712926259012,-500.0,0.00046575,31]
[322274930,1712926259021,-500.0,0.00046575,31]
[322274931,1712926259030,-500.0,0.00046575,31]
[322274932,1712926259040,-500.89904354,0.00046575,31]
[322274933,1712926259050,-1229.15,0.00046575,31]
[322274934,1712926259059,-500.0,0.00046575,31]
[322274935,1712926259068,-500.0,0.00046575,31]
[322274936,1712926259077,-500.0,0.00046575,31]
[322274937,1712926259086,-278.2162492,0.00046575,31]
[322274938,1712926259095,-500.0,0.00046575,31]
[322274939,1712926259105,-500.0,0.00046575,31]
[322274940,1712926259115,-500.0,0.00046575,2]
[322274941,1712926259124,-500.0,0.00046575,31]
[322274942,1712926259134,-500.0,0.00046575,31]
[322274943,1712926259145,-500.0,0.00046575,31]
[322274944,1712926259155,-5319.06,0.00046575,31]
[322274945,1712926259164,-507.78,0.00046575,31]
[322274946,1712926259174,-500.0,0.00046575,31]
[322274947,1712926259186,-500.0,0.00046575,31]
[322274948,1712926259194,-925.96,0.00046575,31]
[322274949,1712926259204,-500.0,0.00046575,31]
[322274950,1712926259212,-500.0,0.00046575,31]
[322274951,1712926259224,-508.91643077,0.00046575,31]
[322274952,1712926259235,-501.79103453,0.00046575,31]
[322274953,1712926259246,-500.0,0.00046575,31]
[322274954,1712926259256,-1505.66,0.00046575,31]
[322274955,1712926259266,-500.0,0.00046575,7]
[322274956,1712926259275,-431.25016338,0.00046575,31]
[322274957,1712926259284,-500.0,0.00046575,31]
[322274958,1712926259293,-500.0,0.00046575,31]
[322274959,1712926259302,-500.0,0.00046575,31]
[322274960,1712926259312,-500.0,0.00046575,31]
[322274961,1712926259321,-500.0,0.00046575,31]
[322274962,1712926259330,-500.0,0.00046575,31]
[322274963,1712926259339,-643.362851,0.00046575,31]
[322274964,1712926259349,-679.75,0.00046575,31]
[322274965,1712926259358,-500.0,0.00046575,31]
[322274966,1712926259368,-500.0,0.00046575,31]
[322274967,1712926259378,-500.0,0.00046575,31]
[322274968,1712926259388,-513.48984927,0.00046575,31]
[322274969,1712926259398,-500.0,0.00046575,31]
[322274970,1712926259407,-500.0,0.00046575,31]
[322274971,1712926259417,-500.0,0.00046575,31]
[322274972,1712926259426,-1000.0,0.00046575,30]
[322274973,1712926259436,-3684.0,0.000466,2]
[322274974,1712926259445,-41498.3657673,0.00046658,2]
[322274975,1712926259454,-1677.7534813,0.00046658,2]
[322274976,1712926259464,-150.0,0.00046685,30]
[322274977,1712926259473,-150.0,0.00046685,30]
[322274978,1712926259482,-150.0,0.00046685,30]
[322274979,1712926259492,-150.0,0.00046685,30]
[322274980,1712926259501,-150.0,0.00046685,30]
[322274981,1712926259512,-500.0,0.00046689,31]
[322274982,1712926259523,-500.0,0.00046689,31]
[322274983,1712926259534,-500.0,0.00046689,31]
[322274984,1712926259544,-608.67,0.00046689,31]
[322274985,1712926259553,-242054.58126105,0.0004669,120]
[322274986,1712926259793,-4044.250584,0.0004669,120]
[322274987,1712926259806,-937.480368,0.0004669,120]
[322274988,1712926259818,-718.227012,0.0004669,120]
[322274989,1712926259829,-1653.15296,0.0004669,120]
[322274990,1712926259842,-854.55749319,0.0004669,120]
[322274991,1712926259854,-411.7493109,0.0004669,120]
[322274992,1712926259866,-652.62529538,0.0004669,120]
[322274993,1712926259881,-173472.7677782,0.0004669,120]
[322274994,1712926260206,-2211.61171423,0.00025764,2]
[322274995,1712926260368,-537.57984342,0.00025764,2]
[322274996,1712926260378,-716.03,0.00037139,2]
[322274997,1712926260387,-873.38,0.0004399,10]
[322274998,1712926260397,-513.8129428,0.00046575,31]
[322274999,1712926260406,-4704.07535904,0.0004669,120]
[322275000,1712926260418,-1108.30347087,0.0004669,120]
[322275001,1712926260431,-6722.23106909,0.0004669,120]
[322275002,1712926260444,-109441.27130294,0.0004669,120]
[322275003,1712926260455,-646.02611121,0.0004669,120]
[322275004,1712926260467,-2609.5,0.0004669,120]
[322275005,1712926260491,-3909.70760982,0.00036999,2]
[322275006,1712926260500,-61360.27645071,0.0004669,120]
[322275007,1712926260512,-58189.92012224,0.0004669,120]
[322275008,1712926260524,-1090.045,0.0004669,120]
[322275009,1712926260537,-16246.95421908,0.0004669,120]
[322275010,1712926260549,-11385.06125116,0.0004669,120]
[322275011,1712926260561,-3632.4,0.0004669,120]
[322275012,1712926260573,-297.2233,0.0004669,120]
[322275013,1712926260593,-375.93228978,0.00036558,4]
[322275014,1712926260604,-173.06771022,0.0004669,120]
[322275015,1712926270814,32383.10528048,0.00021,2]
[322275016,1712926273154,822.55243457,0.000154,2]
[322275017,1712926282512,751.92434253,9e-05,2]
[322275018,1712926312432,156.62444705,0.00018898,2]
[322275019,1712926313219,319.3484212,0.00019178,2]
[322275020,1712926317771,2850.0,6.94e-05,2]
[322275021,1712926322162,155.44351897,0.00018898,2]
[322275022,1712926326558,260.38108017,0.00018898,2]
[322275024,1712926340873,154.999999,0.00034918,30]
[322275025,1712926351336,259.23294087,0.00015,2]
[322275026,1712926384276,150.5,0.0002099,15]
[322275027,1712926384522,194.0,0.0002099,15]
[322275028,1712926385044,194.0,0.0002098,15]
[322275029,1712926385368,150.5,0.0002098,15]
[322275030,1712926385546,194.0,0.0002097,15]
[322275031,1712926386126,194.0,0.0002099,15]
[322275032,1712926386268,240.3,0.0002097,15]
[322275033,1712926386661,194.0,0.0002098,15]
[322275034,1712926387177,194.0,0.0002097,15]
[322275035,1712926387704,194.0,0.0002099,15]
[322275036,1712926388209,194.0,0.0002098,15]
[322275037,1712926388716,194.0,0.0002099,15]
[322275038,1712926389194,201.0,0.0002098,15]
[322275039,1712926416331,155.0,0.00020501,2]
[322275040,1712926430910,407.75423407,0.00020501,2]
[322275041,1712926431604,1297.27092912,0.00020501,2]
[322275042,1712926433575,3377.19112884,0.00020501,2]
[322275043,1712926433805,155.0,0.00020501,2]
[322275044,1712926436044,748.77932256,0.00020501,2]
[322275045,1712926436266,441.53358594,0.00020501,2]
[322275046,1712926442797,236.34235656,0.00020501,2]
[322275047,1712926443418,155.0,0.00020501,2]
[322275048,1712926445589,1763.91157847,0.00020501,2]
[322275049,1712926450194,7464.35,0.00020501,2]
[322275050,1712926452042,748.77932256,0.00018898,2]
[322275051,1712926453016,362.61358032,0.00020501,2]
[322275054,1712926462768,263.32392544,0.00020501,2]
[322275056,1712926470046,513.60137391,0.00018898,2]
[322275057,1712926471104,267.62,0.00020439,2]
[322275058,1712926472231,4575.65491624,0.00020501,2]
[322275059,1712926472868,1000.0,0.00020277,2]
[322275063,1712926481411,154.57095891,0.00034918,120]
[322275064,1712926501742,677.30104696,0.00020501,2]
[322275065,1712926503310,340.0,0.0002099,15]
[322275066,1712926503845,340.0,0.0002098,15]
[322275067,1712926504373,340.0,0.0002097,15]
[322275068,1712926504779,441.53358594,0.00020501,2]
[322275069,1712926504842,340.0,0.0002099,15]
[322275070,1712926505357,340.0,0.0002098,15]
[322275071,1712926505828,340.0,0.0002097,15]
[322275072,1712926506331,340.0,0.0002099,15]
[322275073,1712926506823,340.0,0.0002098,15]
[322275074,1712926507520,340.0,0.0002099,15]
[322275075,1712926508020,345.0,0.0002098,15]
[322275076,1712926519296,236.34235656,0.00020501,2]
[322275077,1712926521772,5067.91717545,0.00020501,2]
[322275078,1712926575290,441.53358594,0.00020501,2]
[322275079,1712926584813,155.0,0.00020501,2]
[322275080,1712926622198,150.0,0.00020501,2]
[322275081,1712926623028,150.0,0.00020501,2]
[322275082,1712926629401,4407.37913859,0.00020501,2]
[322275083,1712926633075,150.43,0.00019923,2]
[322275084,1712926644847,500.0,0.00019923,2]
[322275085,1712926659103,441.53358594,0.00020501,2]
[322275088,1712926664944,165.94,0.00019923,2]
[322275089,1712926685602,-206.42056289,0.00020502,2]
[322275090,1712926685628,-393.57943711,0.00020502,2]
[322275091,1712926688944,3531.95,0.0001991,2]
[322275093,1712926708963,173.07,0.0001991,2]
[322275094,1712926709791,599.27979208,0.00015673,2]
[322275095,1712926710117,589.96,0.00017992,2]
[322275096,1712926710338,589.96,0.00020256,2]
[322275097,1712926729330,-732.90773638,0.00020502,2]
[322275098,1712926729353,-24627.15153629,0.00020502,2]
[322275099,1712926729375,-2211.61171423,0.00020503,2]
[322275100,1712926729397,-725.52343859,0.00020511,2]
[322275101,1712926729419,-167.0,0.00020572,2]
[322275102,1712926729445,-157.19502031,0.00020578,2]
[322275103,1712926729469,-488.23,0.00020699,2]
[322275104,1712926729493,-251.08783605,0.00020788,2]
[322275105,1712926729518,-337.61080594,0.00020799,2]
[322275106,1712926729541,-1980.53093755,0.00020799,2]
[322275107,1712926729565,-3634.0104,0.00020889,2]
[322275108,1712926729590,-155.0,0.00020897,2]
[322275109,1712926729615,-305.50725736,0.00020897,2]
[322275110,1712926729639,-366.55849445,0.00020897,2]
[322275111,1712926729663,-282.90746947,0.00020897,2]
[322275112,1712926729688,-1461.91,0.00020897,2]
[322275113,1712926729712,-348.82,0.00020897,2]
[322275114,1712926729735,-2087.69939211,0.00020898,2]
[322275115,1712926729763,-2087.69939202,0.00020898,2]
[322275116,1712926729788,-2087.69939202,0.00020898,2]
[322275117,1712926729811,-2087.69939202,0.00020899,2]
[322275118,1712926729838,-76226.63978521,0.00020899,2]
[322275119,1712926743337,150.5,0.0002099,15]
[322275120,1712926743811,150.5,0.0002098,15]
[322275121,1712926744448,150.5,0.0002097,15]
[322275122,1712926744945,150.5,0.0002099,15]
[322275123,1712926745479,150.5,0.0002098,15]
[322275124,1712926746062,150.5,0.0002097,15]
[322275125,1712926746578,150.5,0.0002099,15]
[322275126,1712926747117,150.5,0.0002098,15]
[322275127,1712926747666,254.0,0.0002099,15]
[322275128,1712926777241,186.59,0.00019969,2]
[322275129,1712926792946,665.22,0.00019959,2]
[322275130,1712926862769,16283.73,0.00019963,2]
[322275131,1712926863162,150.5,0.0002099,15]
[322275132,1712926863645,150.5,0.0002098,15]
[322275133,1712926864146,150.5,0.0002097,15]
[322275134,1712926864859,150.5,0.0002099,15]
[322275135,1712926865405,150.5,0.0002098,15]
[322275136,1712926865887,150.5,0.0002097,15]
[322275137,1712926881424,1011.96,0.00020052,2]
[322275138,1712926904796,558.95,0.00019956,2]
[322275139,1712926934403,1702.07,0.00019896,2]
[322275140,1712926946804,200.0,0.00019885,2]
[322275141,1712926971529,245.8,0.00020042,2]
[322275142,1712926971571,245.8,0.00020097,2]
[322275143,1712926971729,245.8,0.00020151,2]
[322275144,1712926971999,245.8,0.00020206,2]
[322275145,1712926972236,245.8,0.00020261,2]
[322275146,1712926972471,245.8,0.00020316,2]
[322275147,1712926972694,245.8,0.00020371,2]
[322275148,1712926972905,245.8,0.00020426,2]
[322275149,1712926973133,245.8,0.00020481,2]
[322275150,1712926988198,178.06,0.00020409,2]
[322275151,1712927060359,23900.0,0.00019857,2]
[322275152,1712927112903,203.92900507,0.00020433,2]
[322275155,1712927175276,493.77,0.00019865,2]
[322275156,1712927178040,2354.3,0.0001986,2]
[322275157,1712927212560,159.97344465,0.00020431,2]
[322275169,1712927344155,541.08,0.00017914,2]
[322275170,1712927344563,541.08,0.00020178,2]
[322275171,1712927397665,505.98,0.00019855,2]
[322275173,1712927422953,4678.84,0.00020008,2]
[322275202,1712927431513,-436.57296816,0.00020521,2]
[322275203,1712927431573,-373.23841029,0.00020521,2]
[322275204,1712927431583,-2211.61171423,0.00020522,2]
[322275205,1712927431592,-362.61358032,0.00020523,2]
[322275206,1712927431603,-10360.62329516,0.00020525,2]
[322275207,1712927431614,-4878.81624473,0.00020525,2]
[322275208,1712927431625,-569.99999994,0.00020525,2]
[322275209,1712927431641,-3597.35791855,0.00020525,2]
[322275210,1712927431651,-245.8,0.00020536,2]
[322275211,1712927431660,-6215.57,0.00020548,2]
[322275212,1712927431670,-245.8,0.00020591,2]